[Event "Hungarian Super League 2024-25"]
[Site "Hungary"]
[Date "2024.11.02"]
[Round "1.1"]
[White "Bacrot, Etienne"]
[Black "Parligras, Mircea-Emilian"]
[Result "1/2-1/2"]
[ECO "C67"]
[WhiteElo "2653"]
[BlackElo "2550"]
[Annotator "TA"]
[PlyCount "62"]
[EventDate "2024.10.30"]
[EventType "team-tourn"]
[EventCountry "HUN"]
[SourceTitle "playchess.com"]
[Source "ChessBase"]
[SourceQuality "1"]
[TimeControl "40/5400+30:1800+30"]

{[%evp 18,62,18,15,29,11,19,19,25,12,6,9,13,12,12,19,11,9,7,0,0,8,10,-7,-8,-23,20,0,8,0,20,24,31,12,16,0,14,0,0,0,0,0,0,0,0,0,0]} 1. e4 {[%emt 0:00:33]} e5 {[%emt 0:00:39]} 2. Nf3 {[%emt 0:00:06]} Nc6 {[%emt 0:00:07]} 3. Bb5 {[%emt 0:00:04]} Nf6 {[%emt 0:00:12]} 4. O-O {[%emt 0:00:06]} Nxe4 {[%emt 0:00:09]} 5. d4 {[%emt 0:00:06]} Nd6 {[%emt 0:00:11]} 6. Bxc6 {[%emt 0:00:05]} dxc6 {[%emt 0:00:05]} 7. dxe5 {[%emt 0:00:05]} Nf5 {[%emt 0:00:08]} 8. Qxd8+ {[%emt 0:00:07]} Kxd8 {[%emt 0:00:08]} 9. Nc3 {[%emt 0:00:05][%cal Bb1c3,Bc3e2,Be2d4][%mdl 32]} Ke8 {[%emt 0:00:38]} 10. h3 {[%emt 0:00:33]} h5 {[%emt 0:00:15]} 11. Bf4 {[%emt 0:00:25]} Be7 {[%emt 0:00:33]} 12. Rad1 {[%emt 0:01:08]} Nh4 {[%emt 0:00:54] Hoping for ...Nxf3+.} 13. Nxh4 {[%emt 0:03:17]} Bxh4 {[%emt 0:00:11]} 14. Ne2 {[%emt 0:00:07]} Be7 {[%emt 0:01:16]} 15. Nd4 {[%emt 0:02:09]} g5 {[%emt 0:00:40]} 16. Bh2 {[%emt 0:01:06]} Rh6 {[%emt 0:03:38]} 17. Rfe1 {[%emt 0:05:09]} Bd8 {[%emt 0:03:13]} 18. f4 {[%emt 0:10:58]} gxf4 {[%emt 0:00:53]} 19. Bxf4 {[%emt 0:02:54]} Rg6 {[%emt 0:00:20]} 20. Kf2 {[%emt 0:00:36]} c5 {[%emt 0:20:48]} 21. Nb5 {[%emt 0:03:53][%cal Oe5e6]} Rb6 {[%emt 0:20:09]} 22. a4 {[%emt 0:05:26][%cal Of4g5]} Bd7 {[%emt 0:07:55][%cal Oa7a6]} 23. b3 {[%emt 0:06:27]} Bxb5 {[%emt 0:02:44]} (23... c4 $5) 24. axb5 {[%emt 0:00:16]} a6 {[%emt 0:04:20]} 25. bxa6 {[%emt 0:03:32]} Raxa6 {[%emt 0:00:32] The position is equal.} 26. Rd5 {[%emt 0:03:06]} c4 {[%emt 0:10:05]} 27. bxc4 {[%emt 0:02:07][%cal Oe5e6]} Ra4 {[%emt 0:04:35]} 28. Re4 {[%emt 0:04:24]} Rc6 {[%emt 0:01:26]} 29. Rdd4 {[%emt 0:08:54]} Ra2 {[%emt 0:00:21]} 30. Rd2 {[%emt 0:00:36]} Ra4 {[%emt 0:00:06]} 31. Rdd4 {[%emt 0:00:20]} Ra2 {An uneventful encounter.   Weighted Error Value: White=0.08 (flawless) /Black=0.06 (flawless) .  Inaccurate:     	---       	Black=1      OK:         	White=5     	Black=12} 1/2-1/2

[Event "Hungarian Super League 2024-25"]
[Site "Hungary"]
[Date "2024.11.02"]
[Round "1.3"]
[White "Amin, Bassem"]
[Black "Papp, Gabor"]
[Result "1-0"]
[ECO "A08"]
[WhiteElo "2647"]
[BlackElo "2511"]
[Annotator "TA"]
[PlyCount "101"]
[EventDate "2024.10.30"]
[EventType "team-tourn"]
[EventCountry "HUN"]
[SourceTitle "playchess.com"]
[Source "ChessBase"]
[SourceQuality "1"]
[TimeControl "40/5400+30:1800+30"]

{[%evp 25,101,41,54,44,66,74,82,86,83,60,82,55,31,52,52,45,28,33,69,69,69,43,51,58,61,56,112,99,115,89,112,120,115,121,114,105,106,87,92,97,164,161,157,172,183,183,263,257,232,224,296,259,253,275,310,321,412,316,413,269,545,540,550,512,836,794,834,795,2471,2512,11778,6319,12835,12827,12845,12844,5193,5132]} 1. Nf3 {[%emt 0:01:18]} d5 {[%emt 0:00:52]} 2. g3 {[%emt 0:00:22]} c5 {[%emt 0:00:20]} 3. Bg2 {[%emt 0:00:16]} Nc6 {[%emt 0:00:07]} 4. d4 {[%emt 0:00:24]} Nf6 {[%emt 0:00:07]} 5. O-O {[%emt 0:00:40]} cxd4 {[%emt 0:00:47]} 6. Nxd4 {[%emt 0:00:10]} e5 {[%emt 0:00:05]} 7. Nxc6 {[%emt 0:00:33]} bxc6 8. c4 {[%emt 0:00:07]} Be6 {[%emt 0:00:11]} 9. Nc3 {[%emt 0:00:40] D02: 1 d4 d5 2 Nf3 sidelines, including 2...Nf6 3 g3 and 2...Nf6 3 Bf4.} Qd7 {[%emt 0:02:46]} 10. Qa4 {[%emt 0:10:46]} Rc8 {[%emt 0:00:30]} 11. cxd5 {[%emt 0:00:07]} cxd5 {[%emt 0:00:06]} 12. Qxd7+ {[%emt 0:00:08]} Kxd7 {[%emt 0:00:06]} 13. Rd1 {[%emt 0:00:12]} Bc5 {[%emt 0:00:13]} 14. Na4 {[%emt 0:00:07]} h5 $146 {[%emt 0:00:13]} ({Predecessor:} 14... Rhd8 15. Bd2 Bb6 16. Nxb6+ axb6 17. Bc3 d4 18. e3 Nd5 19. exd4 Nxc3 20. bxc3 Rxc3 21. dxe5+ {1-0 Artemiev,V (2711)-Aronian,L (2725) Chessable Masters Div 2 Win rapid 2024 (3.1)}) 15. Bg5 {[%emt 0:13:56]} Ng4 {[%emt 0:00:24]} 16. Nxc5+ {[%emt 0:01:40]} (16. Bxd5 Bxf2+ 17. Kg2 Bd4 18. Bxe6+ Kxe6 $17) 16... Rxc5 {[%emt 0:00:07]} 17. b4 {[%emt 0:15:26]} Rc2 {[%emt 0:01:47]} 18. Bxd5 {[%emt 0:01:42]} Bxd5 {[%emt 0:00:31]} 19. Rxd5+ {[%emt 0:00:08]} Ke6 {[%emt 0:00:15]} 20. Rd2 {[%emt 0:03:36]} Rhc8 {[%emt 0:00:45]} 21. h3 {[%emt 0:03:17]} Rxd2 {[%emt 0:10:06]} 22. Bxd2 {[%emt 0:00:09]} Rc2 {[%emt 0:00:02]} 23. Be1 {[%emt 0:07:43]} Nf6 {[%emt 0:01:56]} 24. Kf1 {[%emt 0:00:33]} Nd5 {[%emt 0:19:30]} 25. b5 {[%emt 0:03:39]} h4 {[%emt 0:13:15]} (25... Kd6 $14) 26. gxh4 $16 {[%emt 0:01:27]} Nf4 {[%emt 0:01:03]} 27. e3 {[%emt 0:09:10]} Nd3 {[%emt 0:00:11]} 28. a4 $1 {[%emt 0:00:11]} e4 {[%emt 0:16:18]} 29. a5 {[%emt 0:02:32]} g6 {[%emt 0:00:18]} 30. b6 {[%emt 0:03:25]} axb6 {[%emt 0:00:05]} 31. a6 {[%emt 0:00:07]} (31. axb6 $6 Rb2 $11) 31... Rc8 {[%emt 0:01:06]} 32. Bc3 {[%emt 0:02:08]} Ra8 {[%emt 0:01:56] [#]} (32... Rxc3 $2 {is the wrong capture.} 33. a7 Rc8 34. a8=Q (34. a8=R Rc2 $18) 34... Rxa8 35. Rxa8 $18) (32... Kd5 $16 {was worth a try.}) 33. Bd4 $1 $18 {[%emt 0:01:33]} Nb4 {[%emt 0:02:21] [#]} 34. Ra4 $1 {[%emt 0:01:13]} ({And not} 34. Bxb6 Rxa6 35. Rxa6 Nxa6 $11) 34... Nd5 {[%emt 0:02:54]} 35. a7 {[%emt 0:01:46]} Kd6 {[%emt 0:04:00]} (35... Kd7 {keeps fighting.} 36. f3 f5 37. fxe4 fxe4) 36. Kg2 $18 {[%emt 0:00:11]} Kc6 {[%emt 0:06:08]} 37. Kg3 {[%emt 0:01:09]} Kb7 {[%emt 0:03:45]} 38. h5 {[%emt 0:00:59]} gxh5 {[%emt 0:00:07]} 39. Kh4 {[%emt 0:00:06]} Nc7 {[%emt 0:05:55]} 40. Kxh5 {[%emt 0:00:00]} Ne6 {[%emt 0:00:00]} 41. Be5 {[%emt 0:11:17]} Nc5 {[%emt 0:02:58]} 42. Ra2 {[%emt 0:00:11]} b5 $2 {[%emt 0:01:05]} (42... Na6 {is a better defense.} 43. Kg5 Kxa7) 43. h4 $18 {[%emt 0:03:48]} b4 {[%emt 0:01:15]} 44. Bd4 {[%emt 0:05:35]} Nd3 {[%emt 0:02:52]} (44... Ne6 $142 45. Rb2 Nxd4) 45. Kg5 $18 {[%emt 0:07:05]} Kc6 {[%emt 0:02:11]} 46. h5 {[%emt 0:01:58]} Kd5 {[%emt 0:01:04]} 47. h6 {[%emt 0:00:31]} b3 {[%emt 0:00:03]} 48. Ra5+ {[%emt 0:00:17]} Kc4 {[%emt 0:00:09]} 49. h7 {[%emt 0:00:24]} b2 {[%emt 0:00:03]} 50. Bxb2 {[%emt 0:00:08]} Nxb2 {[%emt 0:00:03]} 51. Kf6 {[%emt 0:00:19]} 1-0

[Event "Hungarian Super League 2024-25"]
[Site "Hungary"]
[Date "2024.11.02"]
[Round "1.4"]
[White "Berkes, Ferenc"]
[Black "Banusz, Tamas"]
[Result "1/2-1/2"]
[ECO "D31"]
[WhiteElo "2600"]
[BlackElo "2576"]
[Annotator "TA"]
[PlyCount "51"]
[EventDate "2024.10.30"]
[EventType "team-tourn"]
[EventCountry "HUN"]
[SourceTitle "playchess.com"]
[Source "ChessBase"]
[SourceQuality "1"]
[TimeControl "40/5400+30:1800+30"]

{[%evp 10,51,14,25,19,9,0,0,0,5,3,2,4,0,13,8,12,4,7,7,12,19,17,0,19,14,2,6,8,-2,0,0,0,0,0,0,0,0,0,0,0,0,0,0]} 1. d4 {[%emt 0:00:37]} d5 {[%emt 0:00:38]} 2. c4 {[%emt 0:00:09]} e6 {[%emt 0:00:51]} 3. Nc3 {[%emt 0:00:21]} c6 {[%emt 0:01:16]} 4. e4 {[%emt 0:01:47]} dxe4 {[%emt 0:00:28]} 5. Nxe4 {[%emt 0:00:08]} Bb4+ {[%emt 0:00:08]} 6. Nc3 {[%emt 0:00:13]} e5 {[%emt 0:01:59]} 7. Be3 {[%emt 0:00:25] The position is equal.} exd4 {[%emt 0:00:25]} 8. Qxd4 {[%emt 0:00:14]} Qxd4 {[%emt 0:00:49]} 9. Bxd4 {[%emt 0:00:06]} Nf6 {[%emt 0:00:30]} 10. O-O-O {[%emt 0:01:38]} Be6 {[%emt 0:05:18]} 11. Nh3 {[%emt 0:13:30]} Nbd7 {[%emt 0:06:16]} 12. Nf4 {[%emt 0:00:19]} Bc5 {[%emt 0:00:45]} 13. Nxe6 {[%emt 0:01:16]} fxe6 {[%emt 0:00:09]} 14. g3 {[%emt 0:00:11]} Bxd4 {[%emt 0:04:02]} 15. Rxd4 {[%emt 0:00:12]} Rd8 {[%emt 0:01:01]} 16. Bh3 {[%emt 0:01:35]} Nc5 {[%emt 0:00:54] Prevents Na4} 17. Rxd8+ {[%emt 0:01:24]} Kxd8 {[%emt 0:00:02]} 18. Kc2 {[%emt 0:00:11] Repels Nd3} a5 {[%emt 0:00:26]} 19. f4 {[%emt 0:01:38]} Kc7 {[%emt 0:04:40]} 20. Re1 {[%emt 0:01:39][%cal Oe1e2]} h5 {[%emt 0:05:08]} 21. Bxe6 {[%emt 0:03:11]} Re8 {[%emt 0:00:14]} 22. f5 {[%emt 0:00:11]} Kd6 {[%emt 0:00:28]} 23. Rd1+ {[%emt 0:01:09]} Kc7 {[%emt 0:02:07]} 24. Re1 {[%emt 0:00:21]} Kd6 {[%emt 0:00:11]} 25. Rd1+ {[%emt 0:00:07]} Kc7 {[%emt 0:00:06]} 26. Re1 {Not much happened in this game.   Weighted Error Value: White=0.03 (flawless) /Black=0.02 (flawless) .  OK:         	White=8     	Black=10     Best:        	---       	Black=1} 1/2-1/2

[Event "Hungarian Super League 2024-25"]
[Site "Hungary"]
[Date "2024.11.02"]
[Round "1.5"]
[White "Prohaszka, Peter"]
[Black "Acs, Peter"]
[Result "1-0"]
[ECO "E04"]
[WhiteElo "2545"]
[BlackElo "2585"]
[Annotator "TA"]
[PlyCount "55"]
[EventDate "2024.10.30"]
[EventType "team-tourn"]
[EventCountry "HUN"]
[SourceTitle "playchess.com"]
[Source "ChessBase"]
[SourceQuality "1"]
[TimeControl "40/5400+30:1800+30"]

{[%evp 13,55,16,14,25,39,16,50,42,36,56,111,125,97,113,113,116,161,139,136,142,186,183,204,198,287,268,275,269,402,410,426,439,410,362,435,430,435,443,547,541,540,541,533,520]} 1. d4 {[%emt 0:00:34]} d5 {[%emt 0:00:54][%cal Bd7d5,Bd5c4][%mdl 32]} 2. c4 {[%emt 0:00:07]} e6 {[%emt 0:00:19]} 3. Nf3 {[%emt 0:00:58]} Nf6 {[%emt 0:00:37]} 4. g3 {[%emt 0:00:50]} dxc4 {[%emt 0:04:25]} 5. Bg2 {[%emt 0:00:40]} a6 {[%emt 0:00:22]} 6. Ne5 {[%emt 0:00:27]} c5 {[%emt 0:02:49]} 7. Be3 {[%emt 0:00:05]} Nd5 {[%emt 0:09:20]} 8. O-O {[%emt 0:00:07]} Nd7 {[%emt 0:20:14]} 9. Nxc4 {[%emt 0:02:21]} b5 {[%emt 0:01:03]} 10. dxc5 $1 {[%emt 0:00:59] White is slightly better.} Nxc5 {[%emt 0:06:12]} (10... bxc4 $6 11. Bxd5 exd5 12. Qxd5 $16) 11. b4 {[%emt 0:01:21]} bxc4 {[%emt 0:05:25]} ({Black should play} 11... Na4 $14) 12. Bxc5 $16 {[%emt 0:18:03]} Bxc5 {[%emt 0:04:53]} 13. bxc5 {[%emt 0:00:46]} O-O {[%emt 0:12:03] [#]} 14. Qd4 $1 {[%emt 0:05:43]} Bb7 {[%emt 0:03:29]} 15. Rc1 {[%emt 0:07:56]} (15. Qxc4 Rc8 $16) 15... Rc8 {[%emt 0:02:29]} 16. Nd2 {[%emt 0:06:11][%cal Bb1d2,Bd2e4,Be4d6][%mdl 32]} (16. Qxc4 Nb6 17. Qd3 (17. cxb6 $2 Rxc4 18. Rxc4 Qd1+ 19. Bf1 Rd8 $19) 17... Bxg2 18. Kxg2 Nd7 $16) 16... Qe7 {[%emt 0:11:07]} 17. Ne4 {[%emt 0:10:26]} (17. Nxc4 $6 Qxc5 18. Qb2 Ba8 $11) 17... c3 {[%emt 0:01:49]} 18. Nd6 {[%emt 0:04:42]} (18. Nxc3 $6 Rxc5 19. Nxd5 Rxc1+ 20. Rxc1 Bxd5 $16) 18... e5 {[%emt 0:02:34]} (18... Rb8 {keeps fighting.} 19. e4 Nf6) 19. Nxc8 {[%emt 0:02:45]} (19. Qc4 $2 Qxd6 20. Qb3 Qd7 $19 (20... Rxc5 $2 21. Qxb7 Nf6 22. Qb3 $19)) 19... Rxc8 {[%emt 0:00:10]} 20. Qd3 {[%emt 0:04:14]} Qxc5 {[%emt 0:01:32]} (20... Rxc5 {might work better.} 21. Rab1 (21. Bxd5 Rxd5 22. Qxc3 h6 $18) 21... h5) 21. Rab1 $18 {[%emt 0:00:57]} Nb4 {[%emt 0:03:13]} 22. Qe3 {[%emt 0:02:44]} Qxe3 {[%emt 0:02:13]} 23. fxe3 {[%emt 0:00:07][%cal Bf2e3,Be3e4][%mdl 32]} Bxg2 {[%emt 0:00:14]} 24. Kxg2 {[%emt 0:06:32] KRR-KRN. White is clearly winning.} ({Not} 24. Rxb4 Bh3 25. e4 Kf8 $18) 24... Nd5 {[%emt 0:03:12][%cal Oe5e4,Bb4d5,Bd5e3,Be3c4,Bc4d2][%mdl 32]} ({Inferior is} 24... Nxa2 25. Rc2) 25. e4 {[%emt 0:01:06]} Ne3+ {[%emt 0:01:12]} 26. Kf3 {[%emt 0:01:07]} Nc4 {[%emt 0:00:39]} 27. Rxc3 {[%emt 0:00:30]} Nd2+ {[%emt 0:00:37]} 28. Kg2 {[%emt 0:00:12] Black did not feel at home in the position after the opening.   Weighted Error Value: White=0.03 (flawless) /Black=0.32.  Mistake:       	---       	Black=3      Inaccurate:     	---       	Black=3      OK:         	White=7     	Black=5      Best:        	White=5     	Black=2      Strong:       	White=2     	---} 1-0

[Event "Hungarian Super League 2024-25"]
[Site "Hungary"]
[Date "2024.11.02"]
[Round "1.6"]
[White "Fodor, Tamas Jr."]
[Black "Balog, Imre"]
[Result "1-0"]
[ECO "D10"]
[WhiteElo "2518"]
[BlackElo "2618"]
[Annotator "TA"]
[PlyCount "102"]
[EventDate "2024.10.30"]
[EventType "team-tourn"]
[EventCountry "HUN"]
[SourceTitle "playchess.com"]
[Source "ChessBase"]
[SourceQuality "1"]
[TimeControl "40/5400+30:1800+30"]

{[%evp 36,102,57,87,94,64,123,114,133,137,118,89,130,125,161,110,110,75,90,79,68,74,68,62,103,72,77,46,58,45,48,48,158,158,160,160,174,174,145,127,249,233,505,198,202,138,186,181,218,210,247,247,243,243,229,198,299,291,287,284,437,276,281,276,270,267,269,269,230]} 1. d4 {[%emt 0:00:37]} d5 {[%emt 0:01:07]} 2. c4 {[%emt 0:00:14]} c6 {[%emt 0:00:06]} 3. Nc3 {[%emt 0:00:56]} dxc4 {[%emt 0:00:48]} 4. e3 {[%emt 0:02:26]} b5 {[%emt 0:02:09]} 5. a4 {[%emt 0:00:31]} b4 {[%emt 0:00:17]} 6. Ne4 {[%emt 0:00:06] D10: Slav Defence: 3 cxd5 (without early Nf3) and 3 Nc3.} Qd5 {[%emt 0:00:57]} 7. Nd2 {[%emt 0:00:20]} Ba6 {[%emt 0:01:04]} 8. Qc2 {[%emt 0:03:30]} Nf6 {[%emt 0:12:32] has lost popularity (8...c3).} 9. Nxc4 {[%emt 0:11:33]} e6 {[%emt 0:05:16]} 10. Nf3 {[%emt 0:06:52]} c5 {[%emt 0:06:04]} 11. Be2 {[%emt 0:03:03]} Nc6 $146 {[%emt 0:20:52]} ({Predecessor:} 11... Nbd7 12. O-O Rb8 13. b3 Bb7 14. Bb2 Be7 15. dxc5 Nxc5 16. Be5 Rc8 17. Rfd1 Qe4 {1-0 Brodsky,M (2571)-Milov,L (2482) Nuremberg LGA Cup 3rd 2006 (6.4)}) 12. O-O {[%emt 0:03:44]} b3 {[%emt 0:05:30]} 13. Qd3 {[%emt 0:13:12]} cxd4 {[%emt 0:04:27]} 14. Nxd4 {[%emt 0:02:17]} Nxd4 {[%emt 0:04:47]} 15. exd4 {[%emt 0:10:07]} Rd8 {[%emt 0:01:23]} 16. Be3 {[%emt 0:02:51]} Be7 {[%emt 0:01:26]} 17. Rfc1 {[%emt 0:00:54]} Qb7 {[%emt 0:02:37]} 18. Qd1 {[%emt 0:03:31]} Nd5 {[%emt 0:12:52]} 19. Na5 {[%emt 0:06:17]} Qb6 {[%emt 0:00:13]} 20. Bxa6 {[%emt 0:02:08]} (20. Nxb3 $2 Bxe2 21. Qc2 O-O $19) 20... Nxe3 {[%emt 0:00:20]} (20... Qxa6 $14 21. Nc6 (21. Nxb3 Nxe3 22. fxe3 O-O $14) 21... Rd6 22. Nxe7 Nxe7) 21. fxe3 $16 {[%emt 0:03:20]} Qxa5 {[%emt 0:00:31]} 22. Bb5+ {[%emt 0:01:00]} Kf8 {[%emt 0:00:03]} 23. Qf3 {[%emt 0:04:05]} Bf6 {[%emt 0:03:40]} 24. Rc3 {[%emt 0:03:41]} Kg8 {[%emt 0:01:14]} 25. Qb7 {[%emt 0:02:40]} (25. Rxb3 $18 h5 26. Bd3) 25... h5 $16 {[%emt 0:00:18]} 26. Rf1 {[%emt 0:04:25]} h4 {[%emt 0:01:14]} 27. Qc7 {[%emt 0:04:22]} Qxc7 {[%emt 0:03:36]} 28. Rxc7 {[%emt 0:00:02]} a5 {[%emt 0:00:05]} 29. Bc4 {[%emt 0:00:38]} Rh5 {[%emt 0:00:40]} 30. Rb7 {[%emt 0:00:23]} Rc8 {[%emt 0:01:29]} 31. Bxb3 {[%emt 0:00:04]} h3 {[%emt 0:01:28]} 32. g4 {[%emt 0:02:38]} Rg5 {[%emt 0:01:33]} 33. Rf4 {[%emt 0:00:28]} e5 {[%emt 0:01:47]} (33... Rc1+ $14 34. Kf2 Kf8) 34. Re4 $16 {[%emt 0:00:13]} exd4 {[%emt 0:01:11]} 35. exd4 {[%emt 0:00:16]} (35. Bxf7+ Kh7 36. exd4 Rc1+ 37. Kf2 Rd1 $16) 35... Kh7 {[%emt 0:00:20]} 36. Kf2 {[%emt 0:01:21]} (36. Rxf7 $6 Rd8 $11) 36... Rc1 {[%emt 0:00:39]} 37. Rf4 {[%emt 0:02:21]} (37. Rxf7 Rh1 $16) 37... Kh6 {[%emt 0:01:25]} (37... Rg6 $16) 38. Rb8 $18 {[%emt 0:00:33]} (38. Rxf7 Rg6) 38... Rg6 $2 {[%emt 0:00:21]} (38... Kh7 {is a better defense.} 39. Ke2 (39. Bxf7 Rc2+ 40. Kg3 Rd2 $16) 39... Rc7) 39. Kg3 $2 {[%emt 0:01:11]} (39. Bxf7 Bh4+ 40. Ke3 Re1+ 41. Kd2) 39... Kh7 $18 {[%emt 0:00:14]} 40. Kxh3 {[%emt 0:00:00]} Rh6+ {[%emt 0:00:00]} (40... Be7 $16 41. Rxf7 Bd6) 41. Kg2 $18 {[%emt 0:05:08]} Be7 {[%emt 0:01:32]} 42. Rxf7 {[%emt 0:01:41]} (42. Bxf7 Bd6 43. Bg8+ Kh8 44. Bd5+ Bxb8 45. Rf8+ Kh7 46. Rxb8 Rd1 $11) 42... Bd6 {[%emt 0:01:27]} 43. Rbb7 {[%emt 0:00:12]} Rxh2+ {[%emt 0:01:43]} 44. Kf3 {[%emt 0:00:05]} Rf1+ {[%emt 0:02:34]} 45. Ke4 {[%emt 0:01:27]} Re2+ {[%emt 0:00:25]} (45... Rxf7 $142 46. Bxf7 Re2+ 47. Kd5 Bb4) 46. Kd3 $18 {[%emt 0:01:13]} Rxf7 {[%emt 0:00:47]} 47. Bxf7 {[%emt 0:00:05]} ({Less strong is} 47. Rxf7 Rxb2 48. Bc2 Rb6 49. Ke3+ Kg8 $16) 47... Re7 {[%emt 0:00:47]} (47... Rf2 $142 48. g5 Rf3+ 49. Ke4 Rf4+ 50. Kd5 Bf8 51. g6+ Kh6) 48. Rb6 {[%emt 0:00:41]} Bc7 {[%emt 0:00:38]} 49. Bg6+ {[%emt 0:00:05]} Kh6 {[%emt 0:00:05]} 50. Rc6 {[%emt 0:00:11]} Kg5 {[%emt 0:00:26]} 51. Bf5 {[%emt 0:00:05]} Kf4 {[%emt 0:01:50]} 1-0

[Event "Hungarian Super League 2024-25"]
[Site "Hungary"]
[Date "2024.11.02"]
[Round "1.7"]
[White "Korpa, Bence"]
[Black "Kaczur, Florian"]
[Result "1/2-1/2"]
[ECO "A08"]
[WhiteElo "2544"]
[BlackElo "2509"]
[Annotator "TA"]
[PlyCount "63"]
[EventDate "2024.10.30"]
[EventType "team-tourn"]
[EventCountry "HUN"]
[SourceTitle "playchess.com"]
[Source "ChessBase"]
[SourceQuality "1"]
[TimeControl "40/5400+30:1800+30"]

{[%evp 15,63,-20,0,0,4,0,0,0,0,0,0,0,0,0,0,0,0,0,0,0,0,0,0,0,0,0,14,0,0,0,5,4,18,0,12,0,4,4,10,0,11,0,12,0,18,0,0,0,0,-12]} 1. e4 {[%emt 0:00:35]} e6 {[%emt 0:00:59]} 2. Nf3 {[%emt 0:00:52]} c5 {[%emt 0:01:01]} 3. d3 {[%emt 0:00:19]} d5 {[%emt 0:00:23]} 4. g3 {[%emt 0:02:27]} Nc6 {[%emt 0:01:02]} 5. Nbd2 {[%emt 0:00:19]} Nf6 {[%emt 0:00:52][%cal Bg8f6,Bf6d5,Bd5b4][%mdl 32]} 6. Bg2 {[%emt 0:00:16]} Be7 {[%emt 0:01:02]} 7. O-O {[%emt 0:00:17]} O-O {[%emt 0:00:26]} 8. Re1 {[%emt 0:00:20]} b5 {[%emt 0:01:18] The position is equal.} 9. exd5 {[%emt 0:02:04]} Nxd5 {[%emt 0:04:15]} 10. c4 {[%emt 0:01:11]} bxc4 {[%emt 0:00:26]} 11. dxc4 {[%emt 0:00:10]} Ndb4 {[%emt 0:01:09]} 12. Ne5 {[%emt 0:02:32] Dodges Nd3} Bb7 {[%emt 0:05:00]} 13. a3 {[%emt 0:00:23]} Nxe5 {[%emt 0:03:00]} 14. Bxb7 {[%emt 0:00:34]} Nbd3 {[%emt 0:00:53] Excellent horsemanship.} 15. Bxa8 {[%emt 0:01:38] [#] Black must now prevent Be4.} Nxe1 {[%emt 0:00:31]} 16. Qxe1 {[%emt 0:00:25]} Nd3 {[%emt 0:00:36]} 17. Qe3 {[%emt 0:00:25]} Nxc1 {[%emt 0:00:21]} 18. Rxc1 {[%emt 0:01:44]} Qxa8 {[%emt 0:01:48]} 19. Ne4 {[%emt 0:00:40]} Qc6 {[%emt 0:00:45]} 20. Rd1 {[%emt 0:00:13]} h6 {[%emt 0:00:52]} 21. Rd3 {[%emt 0:01:20]} Rb8 {[%emt 0:01:21]} 22. b3 {[%emt 0:00:33]} Rc8 {[%emt 0:02:19]} 23. h4 {[%emt 0:00:45]} a6 {[%emt 0:00:54]} 24. Rd1 {[%emt 0:05:21]} Qc7 {[%emt 0:02:20]} 25. Kg2 {[%emt 0:05:43]} Kf8 {[%emt 0:02:29]} 26. Rd3 {[%emt 0:04:35]} Qc6 {[%emt 0:01:51] [#] Threatens to win with ...f5.} 27. Kg1 {[%emt 0:01:46]} Qc7 {[%emt 0:02:46]} 28. Kg2 {[%emt 0:00:21]} Re8 {[%emt 0:02:51]} 29. Kg1 {[%emt 0:07:59]} Qe5 {[%emt 0:05:41]} 30. Kg2 {[%emt 0:03:53]} f5 {[%emt 0:01:58]} 31. Nc3 {[%emt 0:01:42]} Qxe3 {[%emt 0:00:11]} 32. fxe3 {[%emt 0:00:05] An interesting draw.   Weighted Error Value: White=0.05 (flawless) /Black=0.05 (flawless) .  OK:         	White=8     	Black=9      Best:        	---       	Black=2} 1/2-1/2